Workbook

Sheet intrastat
A1: DATA | B1: FURNIZOR | C1: CF | D1: CountryOfOrigin | E1: EXP | F1: DeliveryTermsCode | G1: ACode | H1: Bcode | I1: TransportCode | J1: INVNR | K1: VSCODE | L1: NAME | M1: GROUP | N1: UM | O1: Q | P1: PRICE | Q1: NETWEIGHT | R1: NETVALUE | S1: SUPPL | T1: SUPPLVALUE | U1: Ppacking | V1: Spacking | W1: Paper | X1: Plastic | Y1: Wooden
A2: 2023-04-06 | B2: ATLAS DIGITAL SA | C2: EL094154295 | D2: JP | E2: GR | F2: EXW | G2: 1 | H2: 1.1 | I2: 3 | K2: 32151100 | L2: ROLAND TE2 INK BK 500cc | N2: Buc | O2: 6 | P2: 205 | Q2: 4.26 | R2: 1230 | S2: 2
A3: 2023-04-25 | B3: ATLAS DIGITAL SA | C3: EL094154295 | D3: JP | E3: GR | F3: EXW | G3: 1 | H3: 1.1 | I3: 3 | K3: 32151100 | L3: ROLAND TE2 INK BK 500cc | N3: Buc | O3: 3 | P3: 205 | Q3: 2.13 | R3: 615 | S3: 2
A4: 2023-04-25 | B4: ATLAS DIGITAL SA | C4: EL094154295 | D4: JP | E4: GR | F4: EXW | G4: 1 | H4: 1.1 | I4: 3 | K4: 32151100 | L4: ROLAND EUV5 INK BK 500cc | N4: Buc | O4: 2 | P4: 450 | Q4: 1.24 | R4: 900 | S4: 2
A5: 2023-04-25 | B5: ATLAS DIGITAL SA | C5: EL094154295 | D5: JP | E5: GR | F5: EXW | G5: 1 | H5: 1.1 | I5: 3 | K5: 32151100 | L5: ROLAND TEXART INK 1L BK | N5: Buc | O5: 1 | P5: 285 | Q5: 0.62 | R5: 285 | S5: 2 | T5: =567*0.1 -> 56.7
A6: 2023-04-06 | B6: ATLAS DIGITAL SA | C6: EL094154295 | D6: JP | E6: GR | F6: EXW | G6: 1 | H6: 1.1 | I6: 3 | K6: 32151900 | L6: ROLAND TE2 INK CY 500cc | N6: Buc | O6: 3 | P6: 205 | Q6: 2.13 | R6: 615 | S6: 2
A7: 2023-04-06 | B7: ATLAS DIGITAL SA | C7: EL094154295 | D7: JP | E7: GR | F7: EXW | G7: 1 | H7: 1.1 | I7: 3 | K7: 32151900 | L7: ROLAND MAX2 ESL4-440 YE | N7: Buc | O7: 2 | P7: 395 | Q7: 1.24 | R7: 790 | S7: 2
A8: 2023-04-06 | B8: ATLAS DIGITAL SA | C8: EL094154295 | D8: JP | E8: GR | F8: EXW | G8: 1 | H8: 1.1 | I8: 3 | K8: 32151900 | L8: ROLAND MAX2 ESL4-440 MG | N8: Buc | O8: 2 | P8: 395 | Q8: 1.24 | R8: 790 | S8: 2
A9: 2023-04-06 | B9: ATLAS DIGITAL SA | C9: EL094154295 | D9: JP | E9: GR | F9: EXW | G9: 1 | H9: 1.1 | I9: 3 | K9: 32151900 | L9: ROLAND EUV5 INK WH 220cc | N9: Buc | O9: 2 | P9: 230 | Q9: 0.94 | R9: 460 | S9: 2
A10: 2023-04-06 | B10: ATLAS DIGITAL SA | C10: EL094154295 | D10: JP | E10: GR | F10: EXW | G10: 1 | H10: 1.1 | I10: 3 | K10: 32151900 | L10: ROLAND EUV5 DECAL PRIMER 220cc | N10: Buc | O10: 1 | P10: 325 | Q10: 0.68 | R10: 325 | S10: 2
A11: 2023-04-06 | B11: ATLAS DIGITAL SA | C11: EL094154295 | D11: JP | E11: GR | F11: EXW | G11: 1 | H11: 1.1 | I11: 3 | K11: 32151900 | L11: ROLAND TE2 INK YE 500cc | N11: Buc | O11: 3 | P11: 205 | Q11: 2.13 | R11: 615 | S11: 2
A12: 2023-04-06 | B12: ATLAS DIGITAL SA | C12: EL094154295 | D12: JP | E12: GR | F12: EXW | G12: 1 | H12: 1.1 | I12: 3 | K12: 32151900 | L12: ROLAND TE2 INK MG 500cc | N12: Buc | O12: 8 | P12: 205 | Q12: 5.68 | R12: 1640 | S12: 2
A13: 2023-04-25 | B13: ATLAS DIGITAL SA | C13: EL094154295 | D13: JP | E13: GR | F13: EXW | G13: 1 | H13: 1.1 | I13: 3 | K13: 32151900 | L13: ROLAND TE2 INK CY 500cc | N13: Buc | O13: 2 | P13: 205 | Q13: 1.42 | R13: 410 | S13: 2
A14: 2023-04-25 | B14: ATLAS DIGITAL SA | C14: EL094154295 | D14: JP | E14: GR | F14: EXW | G14: 1 | H14: 1.1 | I14: 3 | K14: 32151900 | L14: ROLAND MAX2 ESL4-440 YE | N14: Buc | O14: 2 | P14: 395 | Q14: 1.24 | R14: 790 | S14: 2
A15: 2023-04-25 | B15: ATLAS DIGITAL SA | C15: EL094154295 | D15: JP | E15: GR | F15: EXW | G15: 1 | H15: 1.1 | I15: 3 | K15: 32151900 | L15: ROLAND EUV PR | N15: Buc | O15: 2 | P15: 330 | Q15: 0.94 | R15: 660 | S15: 2
A16: 2023-04-25 | B16: ATLAS DIGITAL SA | C16: EL094154295 | D16: JP | E16: GR | F16: EXW | G16: 1 | H16: 1.1 | I16: 3 | K16: 32151900 | L16: ROLAND TE2 INK CY 750cc | N16: Buc | O16: 2 | P16: 285 | Q16: 3.42 | R16: 570 | S16: 2
A17: 2023-04-25 | B17: ATLAS DIGITAL SA | C17: EL094154295 | D17: JP | E17: GR | F17: EXW | G17: 1 | H17: 1.1 | I17: 3 | K17: 32151900 | L17: ROLAND TE2 INK MG 750cc | N17: Buc | O17: 2 | P17: 285 | Q17: 3.42 | R17: 570 | S17: 2
A18: 2023-04-25 | B18: ATLAS DIGITAL SA | C18: EL094154295 | D18: JP | E18: GR | F18: EXW | G18: 1 | H18: 1.1 | I18: 3 | K18: 32151900 | L18: ROLAND EUV5 INK GL 500cc | N18: Buc | O18: 1 | P18: 450 | Q18: 0.62 | R18: 450 | S18: 2
A19: 2023-04-25 | B19: ATLAS DIGITAL SA | C19: EL094154295 | D19: JP | E19: GR | F19: EXW | G19: 1 | H19: 1.1 | I19: 3 | K19: 32151900 | L19: ROLAND MAX2 ESL4-440 MG | N19: Buc | O19: 1 | P19: 395 | Q19: 0.62 | R19: 395 | S19: 2
A20: 2023-04-25 | B20: ATLAS DIGITAL SA | C20: EL094154295 | D20: JP | E20: GR | F20: EXW | G20: 1 | H20: 1.1 | I20: 3 | K20: 32151900 | L20: ROLAND TE2 INK YE 750cc | N20: Buc | O20: 5 | P20: 285 | Q20: 8.55 | R20: 1425 | S20: 2
A21: 2023-04-25 | B21: ATLAS DIGITAL SA | C21: EL094154295 | D21: JP | E21: GR | F21: EXW | G21: 1 | H21: 1.1 | I21: 3 | K21: 32151900 | L21: ROLAND TE2 INK CY 500cc | N21: Buc | O21: 3 | P21: 205 | Q21: 2.13 | R21: 615 | S21: 2
A22: 2023-04-25 | B22: ATLAS DIGITAL SA | C22: EL094154295 | D22: JP | E22: GR | F22: EXW | G22: 1 | H22: 1.1 | I22: 3 | K22: 32151900 | L22: ROLAND EUV4 GL | N22: Buc | O22: 3 | P22: 300 | Q22: 1.41 | R22: 900 | S22: 2
A23: 2023-04-25 | B23: ATLAS DIGITAL SA | C23: EL094154295 | D23: JP | E23: GR | F23: EXW | G23: 1 | H23: 1.1 | I23: 3 | K23: 32151900 | L23: ROLAND EUV4 MG | N23: Buc | O23: 5 | P23: 300 | Q23: 2.35 | R23: 1500 | S23: 2
A24: 2023-04-25 | B24: ATLAS DIGITAL SA | C24: EL094154295 | D24: JP | E24: GR | F24: EXW | G24: 1 | H24: 1.1 | I24: 3 | K24: 32151900 | L24: ROLAND TEXART INK 1L CY | N24: Buc | O24: 2 | P24: 285 | Q24: 1.24 | R24: 570 | S24: 2
A25: 2023-04-25 | B25: ATLAS DIGITAL SA | C25: EL094154295 | D25: JP | E25: GR | F25: EXW | G25: 1 | H25: 1.1 | I25: 3 | K25: 32151900 | L25: ROLAND TEXART INK 1L MG | N25: Buc | O25: 1 | P25: 285 | Q25: 0.62 | R25: 285 | S25: 2
A26: 2023-04-25 | B26: ATLAS DIGITAL SA | C26: EL094154295 | D26: JP | E26: GR | F26: EXW | G26: 1 | H26: 1.1 | I26: 3 | K26: 32151900 | L26: ROLAND TEXART INK 1L YE | N26: Buc | O26: 1 | P26: 285 | Q26: 0.62 | R26: 285 | S26: 2
A27: 2023-04-25 | B27: ATLAS DIGITAL SA | C27: EL094154295 | D27: JP | E27: GR | F27: EXW | G27: 1 | H27: 1.1 | I27: 3 | K27: 32151900 | L27: ROLAND TE2 INK MG 500cc | N27: Buc | O27: 8 | P27: 205 | Q27: 5.68 | R27: 1640 | S27: 2 | T27: =567*0.7 -> 396.9
A28: 2023-04-25 | B28: ATLAS DIGITAL SA | C28: EL094154295 | D28: JP | E28: GR | F28: EXW | G28: 1 | H28: 1.1 | I28: 3 | K28: 34029090 | L28: ROLAND TR2 CLEANING LIQUID_2 500cc | N28: Buc | O28: 6 | P28: 225 | Q28: 4.26 | R28: 1350 | S28: 2 | T28: =567*0 -> 0
A29: 2023-04-28 | B29: ATLAS DIGITAL SA | C29: EL094154295 | D29: JP | E29: GR | F29: EXW | G29: 1 | H29: 1.1 | I29: 3 | K29: 84213925 | L29: BOFA EXTR. PRINTPRO BASE LEF2-300 | N29: Buc | O29: 1 | P29: 16400 | Q29: 132 | R29: 16400 | S29: 2 | T29: =2368.94*0.2 -> 473.788
A30: 2023-04-28 | B30: ATLAS DIGITAL SA | C30: EL094154295 | D30: JP | E30: GR | F30: EXW | G30: 1 | H30: 1.1 | I30: 3 | K30: 84433900 | L30: ROLAND BN-20 | N30: Buc | O30: 1 | P30: 24500 | Q30: 36 | R30: 24500 | S30: 2 | T30: =2368.94*0.2 -> 473.788
A31: 2023-04-28 | B31: ATLAS DIGITAL SA | C31: EL094154295 | D31: JP | E31: GR | F31: EXW | G31: 1 | H31: 1.1 | I31: 3 | K31: 84433900 | L31: ROLAND LEF2-300 OBJECT PRINTER | N31: Buc | O31: 1 | P31: 95000 | Q31: 145 | R31: 95000 | S31: 2 | T31: =2368.94*0.5 -> 1184.47
A32: 2023-04-06 | B32: ATLAS DIGITAL SA | C32: EL094154295 | D32: JP | E32: GR | F32: EXW | G32: 1 | H32: 1.1 | I32: 3 | K32: 84439990 | L32: ROLAND ASSY,CAP-TOP 2 XC-540 (UV ink) | N32: Buc | O32: 10 | P32: 136.5 | Q32: 0 | R32: 1365 | S32: 2
A33: 2023-04-06 | B33: ATLAS DIGITAL SA | C33: EL094154295 | D33: JP | E33: GR | F33: EXW | G33: 1 | H33: 1.1 | I33: 3 | K33: 84439990 | L33: ROLAND ASSY,HEAD INKJET SV LEF2-300 | N33: Buc | O33: 6 | P33: 2565 | Q33: 0 | R33: 15390 | S33: 2
A34: 2023-04-06 | B34: ATLAS DIGITAL SA | C34: EL094154295 | D34: JP | E34: GR | F34: EXW | G34: 1 | H34: 1.1 | I34: 3 | K34: 84439990 | L34: ROLAND FILTER,LED LAMP LEF-20 5PCS. | N34: Buc | O34: 6 | P34: 224.25 | Q34: 0 | R34: 1345.5 | S34: 2
A35: 2023-04-06 | B35: ATLAS DIGITAL SA | C35: EL094154295 | D35: JP | E35: GR | F35: EXW | G35: 1 | H35: 1.1 | I35: 3 | K35: 84439990 | L35: ROLAND WIPER,HEAD FOR UV INK | N35: Buc | O35: 10 | P35: 48.75 | Q35: 0 | R35: 487.5 | S35: 2
A36: 2023-04-06 | B36: ATLAS DIGITAL SA | C36: EL094154295 | D36: JP | E36: GR | F36: EXW | G36: 1 | H36: 1.1 | I36: 3 | K36: 84439990 | L36: ROLAND FILTER(M),MIST CARRIAGE LEF-20 | N36: Buc | O36: 10 | P36: 13.95 | Q36: 0 | R36: 139.5 | S36: 2
A37: 2023-04-06 | B37: ATLAS DIGITAL SA | C37: EL094154295 | D37: JP | E37: GR | F37: EXW | G37: 1 | H37: 1.1 | I37: 3 | K37: 84439990 | L37: ROLAND CLEANER,WIPER CG2113 | N37: Buc | O37: 3 | P37: 91 | Q37: 0 | R37: 273 | S37: 2
A38: 2023-04-06 | B38: ATLAS DIGITAL SA | C38: EL094154295 | D38: JP | E38: GR | F38: EXW | G38: 1 | H38: 1.1 | I38: 3 | K38: 84439990 | L38: ROLAND HEAD REFRESHERVT-22 SV LEF-200 | N38: Buc | O38: 2 | P38: 510.25 | Q38: 0 | R38: 1020.5 | S38: 2
A39: 2023-04-06 | B39: ATLAS DIGITAL SA | C39: EL094154295 | D39: JP | E39: GR | F39: EXW | G39: 1 | H39: 1.1 | I39: 3 | K39: 84439990 | L39: ROLAND ASSY,PINCHROLL L CG2162_01 | N39: Buc | O39: 1 | P39: 432.25 | Q39: 0 | R39: 432.25 | S39: 2
A40: 2023-04-06 | B40: ATLAS DIGITAL SA | C40: EL094154295 | D40: JP | E40: GR | F40: EXW | G40: 1 | H40: 1.1 | I40: 3 | K40: 84439990 | L40: ROLAND ASSY,PINCHROLL R CG2162_01 | N40: Buc | O40: 1 | P40: 432.25 | Q40: 0 | R40: 432.25 | S40: 2
A41: 2023-04-06 | B41: ATLAS DIGITAL SA | C41: EL094154295 | D41: JP | E41: GR | F41: EXW | G41: 1 | H41: 1.1 | I41: 3 | K41: 84439990 | L41: ROLAND XD-CH3 | N41: Buc | O41: 2 | P41: 240 | Q41: 0 | R41: 480 | S41: 2
A42: 2023-04-25 | B42: ATLAS DIGITAL SA | C42: EL094154295 | D42: JP | E42: GR | F42: EXW | G42: 1 | H42: 1.1 | I42: 3 | K42: 84439990 | L42: ROLAND WIPER,HEAD VS-640/XR-640 | N42: Buc | O42: 20 | P42: 78 | Q42: 0 | R42: 1560 | S42: 2
A43: 2023-04-25 | B43: ATLAS DIGITAL SA | C43: EL094154295 | D43: JP | E43: GR | F43: EXW | G43: 1 | H43: 1.1 | I43: 3 | K43: 84439990 | L43: ROLAND PAD,CUTTER GX-640 | N43: Buc | O43: 2 | P43: 110.5 | Q43: 0 | R43: 221 | S43: 2
A44: 2023-04-25 | B44: ATLAS DIGITAL SA | C44: EL094154295 | D44: JP | E44: GR | F44: EXW | G44: 1 | H44: 1.1 | I44: 3 | K44: 84439990 | L44: ROLAND WIPER,HEAD FELT VS-640 | N44: Buc | O44: 10 | P44: 45.5 | Q44: 0 | R44: 455 | S44: 2
A45: 2023-04-25 | B45: ATLAS DIGITAL SA | C45: EL094154295 | D45: JP | E45: GR | F45: EXW | G45: 1 | H45: 1.1 | I45: 3 | K45: 84439990 | L45: ROLAND ASSY,CAP-TOP 2 XC-540 (UV ink) | N45: Buc | O45: 6 | P45: 136.5 | Q45: 0 | R45: 819 | S45: 2
A46: 2023-04-25 | B46: ATLAS DIGITAL SA | C46: EL094154295 | D46: JP | E46: GR | F46: EXW | G46: 1 | H46: 1.1 | I46: 3 | K46: 84439990 | L46: ROLAND CUTTING BLADE ZEC-U3075 32°/0.75, 5pcs | N46: Buc | O46: 1 | P46: 594.75 | Q46: 0 | R46: 594.75 | S46: 2
A47: 2023-04-25 | B47: ATLAS DIGITAL SA | C47: EL094154295 | D47: JP | E47: GR | F47: EXW | G47: 1 | H47: 1.1 | I47: 3 | K47: 84439990 | L47: ROLAND CLEANER,WIPER CG2113 | N47: Buc | O47: 3 | P47: 91 | Q47: 0 | R47: 273 | S47: 2
A48: 2023-04-25 | B48: ATLAS DIGITAL SA | C48: EL094154295 | D48: JP | E48: GR | F48: EXW | G48: 1 | H48: 1.1 | I48: 3 | K48: 84439990 | L48: ROLAND ASSY,HEAD INKJET SV LEF2-300 | N48: Buc | O48: 2 | P48: 2565 | Q48: 0 | R48: 5130 | S48: 2
A49: 2023-04-25 | B49: ATLAS DIGITAL SA | C49: EL094154295 | D49: JP | E49: GR | F49: EXW | G49: 1 | H49: 1.1 | I49: 3 | K49: 84439990 | L49: ROLAND ASSY,HEAD INKJET SOL XC-540 SV2 | N49: Buc | O49: 2 | P49: 2255 | Q49: 0 | R49: 4510 | S49: 2
A50: 2023-04-25 | B50: ATLAS DIGITAL SA | C50: EL094154295 | D50: JP | E50: GR | F50: EXW | G50: 1 | H50: 1.1 | I50: 3 | K50: 84439990 | L50: ROLAND ASSY,CAP-TOP VS-640_01 | N50: Buc | O50: 10 | P50: 227.5 | Q50: 0 | R50: 2275 | S50: 2
A51: 2023-04-28 | B51: ATLAS DIGITAL SA | C51: EL094154295 | D51: JP | E51: GR | F51: EXW | G51: 1 | H51: 1.1 | I51: 3 | K51: 84439990 | L51: ROLAND STAND PNS-24 | N51: Buc | O51: 1 | P51: 655 | Q51: 17 | R51: 655 | S51: 2 | T51: =2368.94*0.2 -> 473.788
A52: 2023-04-28 | B52: ATLAS DIGITAL SA | C52: EL094154295 | D52: JP | E52: GR | F52: EXW | G52: 1 | H52: 1.1 | I52: 3 | K52: 84561190 | L52: ROLAND ROTARY DEVICE SC2-RD-300 | N52: Buc | O52: 1 | P52: 4735 | Q52: 32 | R52: 4735 | S52: 2 | T52: =2368.94*0.1 -> 236.894
A53: 2023-04-24 | B53: BROTHER INT INDUSTRIEMASCHINEN GMBH | C53: DE814895445 | D53: JP | E53: DE | F53: EXW | G53: 1 | H53: 1.1 | I53: 3 | K53: 29094100 | L53: BROTHER GTX PRE-TREATMENT 20Kg (17,5 Liter) | N53: Buc | O53: 8 | P53: 2096 | Q53: 96 | R53: 16768 | S53: 2
A54: 2023-04-24 | B54: BROTHER INT INDUSTRIEMASCHINEN GMBH | C54: DE814895445 | D54: JP | E54: DE | F54: EXW | G54: 1 | H54: 1.1 | I54: 3 | K54: 29094100 | L54: BROTHER GT-3 PRE-TREATMENT 20Kg (16 Liter) | N54: Buc | O54: 1 | P54: 2340 | Q54: 12 | R54: 2340 | S54: 2
A55: 2023-04-26 | B55: BROTHER INT INDUSTRIEMASCHINEN GMBH | C55: DE814895445 | D55: JP | E55: DE | F55: EXW | G55: 1 | H55: 1.1 | I55: 3 | K55: 29094100 | L55: BROTHER GTX PRE-TREATMENT 20Kg (17,5 Liter) | N55: Buc | O55: 20 | P55: 2096 | Q55: 240 | R55: 41920 | S55: 2
A56: 2023-04-26 | B56: BROTHER INT INDUSTRIEMASCHINEN GMBH | C56: DE814895445 | D56: JP | E56: DE | F56: EXW | G56: 1 | H56: 1.1 | I56: 3 | K56: 29094100 | L56: BROTHER GT-3 PRE-TREATMENT 20Kg (16 Liter) | N56: Buc | O56: 2 | P56: 2340 | Q56: 24 | R56: 4680 | S56: 2 | T56: =3130.16*0.1 -> 313.016
A57: 2023-04-24 | B57: BROTHER INT INDUSTRIEMASCHINEN GMBH | C57: DE814895445 | D57: JP | E57: DE | F57: EXW | G57: 1 | H57: 1.1 | I57: 3 | K57: 32151100 | L57: BROTHER GTX INK 1.8L BLACK | N57: Buc | O57: 1 | P57: 1372.5 | Q57: 2.1 | R57: 1372.5 | S57: 2
A58: 2023-04-26 | B58: BROTHER INT INDUSTRIEMASCHINEN GMBH | C58: DE814895445 | D58: JP | E58: DE | F58: EXW | G58: 1 | H58: 1.1 | I58: 3 | K58: 32151100 | L58: BROTHER GT-3 INK BLACK 380cc | N58: Buc | O58: 3 | P58: 619.5 | Q58: 3.15 | R58: 1858.5 | S58: 2 | T58: =3130.16*0.1 -> 313.016
A59: 2023-04-13 | B59: BROTHER INT INDUSTRIEMASCHINEN GMBH | C59: DE814895445 | D59: JP | E59: DE | F59: EXW | G59: 1 | H59: 1.1 | I59: 3 | K59: 32151900 | L59: BROTHER GTX INK 18L WHITE (GTX BULK) | N59: Buc | O59: 1 | P59: 8565 | Q59: =1.05*18 -> 18.9 | R59: 8565 | S59: 2
A60: 2023-04-13 | B60: BROTHER INT INDUSTRIEMASCHINEN GMBH | C60: DE814895445 | D60: JP | E60: DE | F60: EXW | G60: 1 | H60: 1.1 | I60: 3 | K60: 32151900 | L60: BROTHER GT-3 INK WHITE 380cc (2 pcs) | N60: Buc | O60: 5 | P60: 1040 | Q60: 11.75 | R60: 5200 | S60: 2
A61: 2023-04-13 | B61: BROTHER INT INDUSTRIEMASCHINEN GMBH | C61: DE814895445 | D61: JP | E61: DE | F61: EXW | G61: 1 | H61: 1.1 | I61: 3 | K61: 32151900 | L61: BROTHER GT-3 INK CYAN 380cc | N61: Buc | O61: 4 | P61: 619.5 | Q61: 4.2 | R61: 2478 | S61: 2
A62: 2023-04-19 | B62: BROTHER INT INDUSTRIEMASCHINEN GMBH | C62: DE814895445 | D62: JP | E62: DE | F62: EXW | G62: 1 | H62: 1.1 | I62: 3 | K62: 32151900 | L62: BROTHER GT-3 INK WHITE 380cc (2 pcs) | N62: Buc | O62: 5 | P62: 1040 | Q62: 11.75 | R62: 5200 | S62: 2
A63: 2023-04-24 | B63: BROTHER INT INDUSTRIEMASCHINEN GMBH | C63: DE814895445 | D63: JP | E63: DE | F63: EXW | G63: 1 | H63: 1.1 | I63: 3 | K63: 32151900 | L63: BROTHER GTX INK 1.8L YELLOW | N63: Buc | O63: 1 | P63: 1372.5 | Q63: 4.2 | R63: 1372.5 | S63: 2
A64: 2023-04-24 | B64: BROTHER INT INDUSTRIEMASCHINEN GMBH | C64: DE814895445 | D64: JP | E64: DE | F64: EXW | G64: 1 | H64: 1.1 | I64: 3 | K64: 32151900 | L64: BROTHER GTX INK WHITE 700cc (2 pcs) | N64: Buc | O64: 30 | P64: 1223.6 | Q64: 87 | R64: 36708 | S64: 2
A65: 2023-04-26 | B65: BROTHER INT INDUSTRIEMASCHINEN GMBH | C65: DE814895445 | D65: JP | E65: DE | F65: EXW | G65: 1 | H65: 1.1 | I65: 3 | K65: 32151900 | L65: BROTHER GT-3 INK CYAN 380cc | N65: Buc | O65: 2 | P65: 619.5 | Q65: 2.1 | R65: 1239 | S65: 2
A66: 2023-04-26 | B66: BROTHER INT INDUSTRIEMASCHINEN GMBH | C66: DE814895445 | D66: JP | E66: DE | F66: EXW | G66: 1 | H66: 1.1 | I66: 3 | K66: 32151900 | L66: BROTHER GT-3 INK MAGENTA 380cc | N66: Buc | O66: 3 | P66: 619.5 | Q66: 3.15 | R66: 1858.5 | S66: 2
A67: 2023-04-26 | B67: BROTHER INT INDUSTRIEMASCHINEN GMBH | C67: DE814895445 | D67: JP | E67: DE | F67: EXW | G67: 1 | H67: 1.1 | I67: 3 | K67: 32151900 | L67: BROTHER GT-3 INK YELLOW 380cc | N67: Buc | O67: 2 | P67: 619.5 | Q67: 2.1 | R67: 1239 | S67: 2 | T67: =3130.16*0.15 -> 469.524
A68: 2023-04-13 | B68: BROTHER INT INDUSTRIEMASCHINEN GMBH | C68: DE814895445 | D68: JP | E68: DE | F68: EXW | G68: 1 | H68: 1.1 | I68: 3 | K68: 34029090 | L68: BROTHER FULL MAINTENANCE KIT (GT3) | N68: Set | O68: 2 | P68: 189 | Q68: 2 | R68: 378 | S68: 2
A69: 2023-04-26 | B69: BROTHER INT INDUSTRIEMASCHINEN GMBH | C69: DE814895445 | D69: JP | E69: DE | F69: EXW | G69: 1 | H69: 1.1 | I69: 3 | K69: 34029090 | L69: BROTHER GTX GCX-4E05 CLEANING SOL. 5L | N69: Buc | O69: 4 | P69: 532.5 | Q69: 16.4 | R69: 2130 | S69: 2
A70: 2023-04-26 | B70: BROTHER INT INDUSTRIEMASCHINEN GMBH | C70: DE814895445 | D70: JP | E70: DE | F70: EXW | G70: 1 | H70: 1.1 | I70: 3 | K70: 34029090 | L70: BROTHER GTX GCX-4E05 CLEANING SOL. 5L | N70: Buc | O70: 4 | P70: 532.5 | Q70: 16.4 | R70: 2130 | S70: 2 | T70: =3130.16*0.05 -> 156.508
A71: 2023-04-04 | B71: BROTHER INT INDUSTRIEMASCHINEN GMBH | C71: DE814895445 | D71: JP | E71: DE | F71: EXW | G71: 1 | H71: 1.1 | I71: 3 | K71: 84433900 | L71: BROTHER GT-361 PRINTER | N71: Buc | O71: 2 | P71: 30060 | Q71: 185 | R71: 60120 | S71: 2 | T71: =3130.16*0.35 -> 1095.556
A72: 2023-04-04 | B72: BROTHER INT INDUSTRIEMASCHINEN GMBH | C72: DE814895445 | D72: JP | E72: DE | F72: EXW | G72: 1 | H72: 1.1 | I72: 3 | K72: 84439990 | L72: BROTHER PLATEN, SLEEVE VKF (10.2 x 40.6 cm) | N72: Buc | O72: 1 | P72: 1123.49 | Q72: 0 | R72: 1123.49 | S72: 2
A73: 2023-04-13 | B73: BROTHER INT INDUSTRIEMASCHINEN GMBH | C73: DE814895445 | D73: JP | E73: DE | F73: EXW | G73: 1 | H73: 1.1 | I73: 3 | K73: 84439990 | L73: BROTHER POLY PRETREAT 90-2357-001 (2L) | N73: Buc | O73: 1 | P73: 236 | Q73: 0 | R73: 236 | S73: 2
A74: 2023-04-26 | B74: BROTHER INT INDUSTRIEMASCHINEN GMBH | C74: DE814895445 | D74: JP | E74: DE | F74: EXW | G74: 1 | H74: 1.1 | I74: 3 | K74: 84439990 | L74: BROTHER R2R ROLL FEEDING UNIT | N74: Buc | O74: 1 | P74: 35080.5 | Q74: 0 | R74: 35080.5 | S74: 2
A75: 2023-04-26 | B75: BROTHER INT INDUSTRIEMASCHINEN GMBH | C75: DE814895445 | D75: JP | E75: DE | F75: EXW | G75: 1 | H75: 1.1 | I75: 3 | K75: 84439990 | L75: BROTHER MAINTENANCE KIT 25K (PRO) | N75: Buc | O75: 1 | P75: 1043 | Q75: 0 | R75: 1043 | S75: 2
A76: 2023-04-26 | B76: BROTHER INT INDUSTRIEMASCHINEN GMBH | C76: DE814895445 | D76: JP | E76: DE | F76: EXW | G76: 1 | H76: 1.1 | I76: 3 | K76: 84439990 | L76: BROTHER MAINTENANCE KIT 25k (GTX) | N76: Buc | O76: 1 | P76: 945 | Q76: 0 | R76: 945 | S76: 2
A77: 2023-04-26 | B77: BROTHER INT INDUSTRIEMASCHINEN GMBH | C77: DE814895445 | D77: JP | E77: DE | F77: EXW | G77: 1 | H77: 1.1 | I77: 3 | K77: 84439990 | L77: BROTHER MAINTENANCE KIT 25K (PRO BULK) | N77: Buc | O77: 1 | P77: 1428 | Q77: 0 | R77: 1428 | S77: 2
A78: 2023-04-26 | B78: BROTHER INT INDUSTRIEMASCHINEN GMBH | C78: DE814895445 | D78: JP | E78: DE | F78: EXW | G78: 1 | H78: 1.1 | I78: 3 | K78: 84439990 | L78: BROTHER PLATEN, KIT COMPLETE T-LOCK | N78: Set | O78: 1 | P78: 4196 | Q78: 0 | R78: 4196 | S78: 2
A79: 2023-04-26 | B79: BROTHER INT INDUSTRIEMASCHINEN GMBH | C79: DE814895445 | D79: JP | E79: DE | F79: EXW | G79: 1 | H79: 1.1 | I79: 3 | K79: 84439990 | L79: BROTHER WIPER CLEANER - 2pcs (GTX/PRO) | N79: Buc | O79: 20 | P79: 63 | Q79: 0 | R79: 1260 | S79: 2
A80: 2023-04-26 | B80: BROTHER INT INDUSTRIEMASCHINEN GMBH | C80: DE814895445 | D80: JP | E80: DE | F80: EXW | G80: 1 | H80: 1.1 | I80: 3 | K80: 84439990 | L80: BROTHER FAN FILTER SET (GTX) | N80: Buc | O80: 20 | P80: 14 | Q80: 0 | R80: 280 | S80: 2
A81: 2023-04-26 | B81: BROTHER INT INDUSTRIEMASCHINEN GMBH | C81: DE814895445 | D81: JP | E81: DE | F81: EXW | G81: 1 | H81: 1.1 | I81: 3 | K81: 84439990 | L81: BROTHER FLUSHING FOAM SET (GTX) | N81: Buc | O81: 6 | P81: 87.5 | Q81: 22 | R81: 525 | S81: 2 | T81: =3130.16*0.25 -> 782.54
A82: 2023-04-04 | B82: BROTHER INT INDUSTRIEMASCHINEN GMBH | C82: DE814895445 | D82: JP | E82: DE | F82: EXW | G82: 1 | H82: 1.1 | I82: 3 | K82: 84513000 | L82: ST MAXX2G DUAL PRESS 40x50 | N82: Buc | O82: 2 | P82: 6383.49 | Q82: 50 | R82: 12766.98 | S82: 2
A83: 2023-04-26 | B83: BROTHER INT INDUSTRIEMASCHINEN GMBH | C83: DE814895445 | D83: JP | E83: DE | F83: EXW | G83: 1 | H83: 1.1 | I83: 3 | K83: 84513000 | L83: SCH DTF PowDR MACHINE ZSCH803558G1 | N83: Buc | O83: 1 | P83: 42478.75 | Q83: 25 | R83: 42478.75 | S83: 2 | T83: =3130.16*0.3 -> 939.048
A84: 2023-04-26 | B84: DRUCKTECH KFT | C84: HU11904881 | D84: HU | E84: HU | F84: EXW | G84: 1 | H84: 1.1 | I84: 3 | K84: 84439990 | L84: DRUCKTECH SPRING W.ACC, HEAT PLATE PHP45-V2 | N84: Buc | O84: 4 | P84: 47.5 | Q84: 2 | R84: 190 | S84: 2 | T84: =25*4.99 -> 124.75
A85: 2023-04-21 | B85: STAHLS EUROPE GMBH | C85: DE137872290 | D85: DE | E85: DE | F85: EXW | G85: 1 | H85: 1.1 | I85: 3 | K85: 55039000 | L85: ST PROTECTION COVER for HEAT PLATEN | N85: Buc | O85: 4 | P85: 225 | Q85: 4 | R85: 900 | S85: 2
A86: 2023-04-21 | B86: STAHLS EUROPE GMBH | C86: DE137872290 | D86: DE | E86: DE | F86: EXW | G86: 1 | H86: 1.1 | I86: 3 | K86: 84439990 | L86: ST SP, HEAT PLATEN 40x50 (STX) | N86: Buc | O86: 1 | P86: 1348.4 | Q86: 2 | R86: 1348.4 | S86: 2 | T86: =215*4.99*0.3 -> 321.855
A87: 2023-04-21 | B87: STAHLS EUROPE GMBH | C87: DE137872290 | D87: DE | E87: DE | F87: EXW | G87: 1 | H87: 1.1 | I87: 3 | K87: 84513000 | L87: ST HOTRONIX FUSION iQ 40x50 | N87: Buc | O87: 1 | P87: 9925 | Q87: 25 | R87: 9925 | S87: 2 | T87: =215*4.99*0.7 -> 750.995
A88: 2023-04-19 | B88: WALTER SCHULZE GMBH | C88: DE136596684 | D88: DE | E88: DE | F88: EXW | G88: 1 | H88: 1.1 | I88: 3 | K88: 84439990 | L88: SCH DTF FILM PREMUIM, 0.4m x 100m ROLL | N88: Buc | O88: 2 | P88: 451.5 | Q88: 0 | R88: 903 | S88: 2
A89: 2023-04-19 | B89: WALTER SCHULZE GMBH | C89: DE136596684 | D89: DE | E89: DE | F89: EXW | G89: 1 | H89: 1.1 | I89: 3 | K89: 84439990 | L89: SCH REPLACEMENT TEFLON for HEAT PLATEN (40x50) | N89: Buc | O89: 2 | P89: 243.4 | Q89: 3 | R89: 486.8 | S89: 2 | T89: =29.53*4.99 -> 147.3547

Sheet Sheet
